bitfinex-derivatives/quotes_ETHF0:USTF0_20250327
["timestamp","ask_amount","ask_price","bid_price","bid_amount"]
[1743107466797,2.30893,2010.0,2009.9,0.9952]
[1743107467298,2.30893,2010.0,2009.9,2.4275]
[1743107467794,3.80178,2010.0,2009.7,21.8]
[1743107468001,0.99535,2009.8,2009.7,1.4323]
[1743107468396,3.85395,2009.8,2009.7,1.4323]
[1743107468601,0.99535,2009.7,2009.6,3.18947645]
[1743107468794,2.43095,2009.7,2009.6,5.61717645]
[1743107469704,2.43095,2009.7,2009.6,4.62177645]
[1743107471201,2.43095,2009.7,2009.6,1.43977645]
[1743107471396,2.43095,2009.7,2009.6,0.00747645]
[1743107471701,3.2078,2010.6,2009.6,8.6926668]
[1743107471905,5.3236,2010.9,2010.4,2.48751]
[1743107472203,5.3236,2010.9,2010.3,3.2078]
[1743107472204,2.1158,2010.9,2010.8,0.9948]
[1743107473008,3.11055,2010.9,2010.8,0.9948]
[1743107473306,2.1158,2010.9,2010.7,1.3037]
[1743107473604,2.1158,2010.9,2010.8,0.9948]
[1743107473801,3.11057,2010.9,2010.7,2.29851]
[1743107474005,3.11057,2010.9,2010.8,0.64246295]
[1743107474204,3.11057,2010.9,2010.8,1.63726295]
[1743107474698,3.11057,2010.9,2010.8,0.64246295]
[1743107474903,0.9948,2010.8,2010.7,2.29854]
[1743107475108,2.2964,2010.8,2010.7,2.29854]
[1743107475600,1.3016,2010.8,2010.7,2.29854]
[1743107475998,1.3016,2010.8,2010.7,2.94045269]
[1743107476198,2.2964,2010.8,2010.7,2.94045269]
[1743107476400,2.9551,2010.8,2010.7,2.94045269]
[1743107476799,2.9551,2010.8,2010.7,2.29854]
[1743107478308,1.3016,2010.8,2010.7,2.29854]
[1743107478505,1.70758,2010.9,2010.8,0.9948]
[1743107478910,1.3692,2011.0,2010.9,0.99475]
[1743107479105,4.86118,2011.1,2011.0,0.9947]
[1743107479299,3.8665,2011.1,2011.0,0.9947]
[1743107479505,4.86115,2011.1,2011.0,0.9947]
[1743107479703,3.8665,2011.1,2011.0,2.3516]
[1743107480012,6.20455,2011.1,2011.0,2.3516]
[1743107480609,0.99465,2011.1,2011.0,2.3516]
[1743107481008,0.99465,2011.1,2011.0,1.3569]
[1743107481206,2.33805,2011.1,2011.0,1.3569]
[1743107483216,2.33805,2011.1,2011.0,2.3516]
[1743107486508,2.33805,2011.1,2011.0,1.3569]
[1743107487113,2.33805,2011.1,2011.0,2.3516]
[1743107488605,2.33805,2011.1,2011.0,1.3569]
[1743107488809,2.33805,2011.1,2011.0,2.3516]
[1743107489309,2.33805,2011.1,2011.0,1.3569]
[1743107489619,2.33805,2011.1,2011.0,2.3516]
[1743107490118,2.33805,2011.1,2011.0,1.3569]
[1743107490812,2.33805,2011.1,2011.0,2.3516]
[1743107491425,2.33805,2011.1,2011.0,1.3569]
[1743107492920,0.9947,2011.0,2010.9,3.245]
[1743107493119,2.3169,2011.0,2010.9,3.245]
[1743107493514,2.3169,2011.0,2010.9,4.6562]
[1743107494423,2.3169,2011.0,2010.9,5.65095]
[1743107494620,2.3169,2011.0,2010.9,4.6562]
[1743107496519,0.9947,2011.0,2010.9,5.65095]
[1743107497819,0.9947,2011.0,2010.9,6.29341761]
[1743107500623,0.9947,2011.0,2010.9,28.09341761]
[1743107501216,0.9947,2011.0,2010.9,6.29341761]
[1743107503320,2.43798,2011.1,2011.0,0.9947]
[1743107503521,0.99468,2011.1,2011.0,3.02396761]
[1743107503723,2.39678,2011.1,2011.0,3.02396761]
[1743107509537,2.39678,2011.1,2011.0,2.02926761]
[1743107510831,1.64555,2011.2,2011.1,0.99465]
[1743107511126,1.64555,2011.2,2011.1,2.37935]
[1743107511331,3.05855,2011.2,2011.1,3.71881761]
[1743107515033,3.05855,2011.2,2011.1,2.02716761]
[1743107517932,3.05855,2011.2,2011.1,3.02181761]
[1743107518137,3.05855,2011.2,2011.1,2.02716761]
[1743107518531,3.05855,2011.2,2011.1,3.02181761]
[1743107518730,3.05855,2011.2,2011.1,2.02716761]
[1743107520342,3.05855,2011.2,2011.1,3.02181761]
[1743107520539,3.05855,2011.2,2011.1,2.02716761]
[1743107523138,3.05855,2011.2,2011.1,3.02181761]
[1743107523838,8.18021,2011.5,2011.4,0.99451]
[1743107523839,3.2078,2011.5,2011.4,0.99451]
[1743107524041,0.99446,2011.5,2011.4,1.63697761]
[1743107524344,0.99445,2011.6,2011.5,0.99441]
[1743107524537,1.69671,2011.7,2011.6,0.99441]
[1743107524739,0.99441,2011.6,2011.5,1.70372]
[1743107525240,1.69671,2011.7,2011.6,0.99441]
[1743107525545,3.13301,2011.7,2011.6,2.32971]
[1743107526043,3.13301,2011.7,2011.6,2.9738453]
[1743107526433,3.13301,2011.7,2011.6,1.9794353]
[1743107530146,3.13301,2011.7,2011.6,2.9738453]
[1743107530347,3.13301,2011.7,2011.6,1.9794353]
[1743107531249,3.13301,2011.7,2011.6,2.9738453]
[1743107531546,3.13301,2011.7,2011.6,1.9794353]
[1743107531741,3.13301,2011.7,2011.6,2.9738453]
[1743107532341,3.13301,2011.7,2011.6,1.9794353]
[1743107532740,3.13301,2011.7,2011.6,2.9738453]
[1743107533150,3.13301,2011.7,2011.6,3.6317453]
[1743107533542,3.13301,2011.7,2011.6,2.6373353]
[1743107534350,3.13301,2011.7,2011.6,3.6317453]
[1743107536943,3.13301,2011.7,2011.6,2.6373353]
[1743107537345,3.13301,2011.7,2011.6,1.9794353]
[1743107537954,3.13301,2011.7,2011.6,2.9738453]
[1743107539755,0.99436,2011.7,2011.6,2.9737953]
[1743107539944,2.42386,2011.7,2011.6,2.9737953]
[1743107542362,1.4295,2011.7,2011.6,2.9737953]
[1743107542562,3.2078,2011.8,2011.7,0.99436]
[1743107542755,0.99426,2012.0,2011.9,0.99422]
[1743107542951,2.37816,2012.0,2011.9,1.6383553]
[1743107543350,5.57309,2012.1,2012.0,0.99421]
[1743107543557,5.57309,2012.1,2012.0,2.32211]
[1743107543756,5.57309,2012.1,2012.0,3.6657453]
[1743107543958,4.86929,2012.1,2012.0,3.6657453]
[1743107545958,4.86929,2012.1,2012.0,2.6715353]
[1743107546264,4.86929,2012.1,2012.0,3.6657453]
[1743107546464,5.56939,2012.1,2012.0,3.6657453]
[1743107546864,5.56939,2012.1,2012.0,1.9720353]
[1743107547166,0.99426,2011.9,2011.8,3.2078]
[1743107547367,0.99431,2011.8,2011.7,1.44205731]
[1743107547752,0.99431,2011.8,2011.7,0.00745731]
[1743107548361,1.69441,2011.8,2011.7,1.44205731]
[1743107554560,0.99431,2011.8,2011.7,1.44205731]
[1743107557971,0.99431,2011.8,2011.7,0.00745731]
[1743107558569,0.99431,2011.8,2011.1,6.4108]
[1743107558570,0.99461,2011.2,2011.1,6.4108]
[1743107558870,0.99461,2011.2,2011.1,4.528]
[1743107559064,0.99461,2011.2,2011.1,1.325]
[1743107559262,0.99461,2011.2,2011.1,1.96402074]
[1743107559464,0.99461,2011.2,2011.1,0.63902074]
[1743107559665,2.38171,2011.2,2011.1,0.63902074]
[1743107561565,5.58951,2011.2,2011.1,0.63902074]
[1743107565072,0.9947,2011.0,2010.9,0.00745731]
[1743107565469,0.9947,2011.0,2010.9,0.64538054]
[1743107568678,0.9948,2010.8,2010.7,1.3256]
[1743107569183,0.9948,2010.8,2010.7,1.96292594]
[1743107569378,2.3886,2010.8,2010.7,1.96292594]
[1743107575283,2.3886,2010.8,2010.7,1.3256]
[1743107581692,2.3886,2010.8,2010.7,1.96324749]
[1743107582793,0.9948,2010.8,2010.7,2.95809749]
[1743107596887,2.3046,2010.8,2010.7,2.95809749]
[1743107597090,2.3046,2010.8,2010.7,1.96324749]
[1743107597289,2.9754,2010.8,2010.7,0.63764749]
[1743107599299,2.9754,2010.8,2010.7,1.32111991]
[1743107599898,2.9754,2010.8,2010.7,2.31596991]
[1743107600096,2.9754,2010.8,2010.7,1.32111991]
[1743107600294,2.9754,2010.8,2010.7,1.32101678]
[1743107600799,2.9754,2010.8,2010.7,2.67831678]
[1743107603601,2.9754,2010.8,2010.7,3.67316678]
[1743107604099,2.9754,2010.8,2010.7,25.47311744]
[1743107604999,2.9754,2010.8,2010.7,3.67311744]
[1743107605897,2.9754,2010.8,2010.7,3.6729723]
[1743107606200,2.9754,2010.8,2010.7,3.67297249]
[1743107607396,1.3098,2010.8,2010.7,3.67297249]
[1743107607599,2.3046,2010.8,2010.7,3.67297249]
[1743107609802,2.3046,2010.8,2010.7,3.67315298]
[1743107611598,2.3046,2010.8,2010.7,2.98979749]
[1743107611802,2.3046,2010.8,2010.7,3.67322988]
[1743107613607,2.3046,2010.8,2010.7,3.67329457]
[1743107618011,1.3098,2010.8,2010.7,3.67329457]
[1743107618212,2.3046,2010.8,2010.7,3.67329457]
[1743107619510,2.3046,2010.8,2010.7,3.67323929]
[1743107621214,2.3046,2010.8,2010.7,3.67321585]
[1743107621414,2.3046,2010.8,2010.7,6.85621585]
[1743107624808,1.3098,2010.8,2010.7,6.85621585]
[1743107625014,4.8624,2011.1,2010.8,2.48701]
[1743107625207,1.3854,2011.0,2010.9,3.68701585]
[1743107625518,1.3854,2011.0,2010.9,25.48701585]
[1743107626718,2.3801,2011.0,2010.9,25.48701585]
[1743107626917,2.3801,2011.0,2010.9,25.48654684]
[1743107628514,2.3801,2011.0,2010.9,3.68654684]
[1743107628819,2.3801,2011.0,2010.9,1.32091134]
[1743107629020,2.3801,2011.0,2010.9,0.63764749]
[1743107629411,0.9949,2010.6,2010.5,5.51707731]
[1743107629611,0.9949,2010.6,2010.5,6.20090007]
[1743107629808,3.0401,2010.6,2010.5,6.20090007]
[1743107630722,3.0401,2010.6,2010.5,6.20087059]
[1743107632625,3.0401,2010.6,2010.5,6.20082787]
[1743107635028,3.0401,2010.6,2010.5,5.20590787]
[1743107635224,3.0401,2010.6,2010.5,3.89900787]
[1743107635425,3.0401,2010.6,2010.5,0.69120787]
[1743107635820,3.0401,2010.6,2010.5,0.00745731]
[1743107636419,0.9951,2010.2,2010.1,50.146]
[1743107636620,0.9951,2010.2,2010.1,0.68356491]
[1743107636815,0.9951,2010.2,2010.1,1.67871491]
[1743107637021,0.9951,2010.2,2010.1,0.68356491]
[1743107637427,2.3714,2010.2,2010.1,0.68356491]
[1743107637826,2.3714,2010.2,2009.9,0.00745731]
[1743107637827,0.9952,2010.0,2009.9,0.00745731]
[1743107639726,1.7048,2010.0,2009.9,0.00745731]
[1743107641726,3.1053,2010.0,2009.9,0.00745731]
[1743107643833,3.7803,2010.0,2009.9,0.00745731]
[1743107647535,3.7803,2010.0,2009.9,7.31e-06]
[1743107647836,6.2803,2010.0,2009.9,7.31e-06]
[1743107650541,12.2323,2010.0,2009.9,7.31e-06]
[1743107664542,9.7323,2010.0,2009.9,7.31e-06]
[1743107664743,12.2323,2010.0,2009.9,7.31e-06]
[1743107664943,12.9173,2010.0,2009.9,7.31e-06]
[1743107665347,0.9953,2009.8,2009.7,1.3502]
[1743107665543,4.2031,2009.8,2009.7,1.3502]
[1743107668450,4.2031,2009.8,2009.7,2.0512]
[1743107674559,4.2031,2009.8,2009.7,0.30194]
[1743107674751,0.99535,2009.7,2009.6,0.6917]
[1743107674960,6.17445,2009.7,2009.6,0.6917]
[1743107678055,6.17445,2009.7,2009.6,2.0954]
[1743107679462,9.38225,2009.7,2009.6,2.0954]
[1743107682762,9.38225,2009.7,2009.6,2.8036]
[1743107683067,8.70765,2009.7,2009.6,2.8036]
[1743107683662,5.52265,2009.7,2009.6,2.8036]
[1743107683865,7.38815,2009.7,2009.6,2.8036]
[1743107684557,4.20315,2009.7,2009.6,2.8036]
[1743107686370,4.20315,2009.7,2009.6,3.48828981]
[1743107686660,4.20315,2009.7,2009.6,3.4882058]
[1743107687166,4.20315,2009.7,2009.6,3.48820767]
[1743107687372,4.20315,2009.7,2009.6,2.8036]
[1743107687573,4.20315,2009.7,2009.6,3.48813966]
[1743107688470,4.20315,2009.7,2009.6,2.8036]
[1743107690381,4.20315,2009.7,2009.6,3.48800983]
[1743107691377,4.20315,2009.7,2009.6,2.8036]
[1743107695477,4.89555,2009.7,2009.6,2.8036]
[1743107704384,4.89555,2009.7,2009.6,2.0954]
[1743107705680,0.9954,2009.6,2009.5,0.00745731]
[1743107705889,2.4138,2009.6,2009.5,0.00745731]
[1743107707380,5.5978,2009.6,2009.5,0.00745731]
[1743107729399,5.5978,2009.6,2009.5,1.35675731]
[1743107733600,2.4138,2009.6,2009.5,1.35675731]
[1743107734188,0.9954,2009.6,2009.5,1.35675731]
[1743107734403,0.9954,2009.6,2009.5,3.03591244]
[1743107734994,3.2078,2009.7,2009.6,0.9954]
[1743107735196,4.20315,2009.7,2009.6,3.69860513]
[1743107735397,4.20315,2009.7,2009.6,3.6987159]
[1743107735594,4.20315,2009.7,2009.6,4.19640878]
[1743107737191,3.91028,2009.9,2009.7,0.9953]
[1743107737192,2.48818,2009.9,2009.7,0.9953]
[1743107737489,0.99525,2009.9,2009.8,2.79493486]
[1743107737998,0.99525,2009.9,2009.8,3.4776089]
[1743107738193,0.99525,2009.9,2009.8,5.9776089]
[1743107739294,0.99525,2009.9,2009.8,5.97704427]
[1743107740291,0.99525,2009.9,2009.8,6.35624427]
[1743107740701,0.99525,2009.9,2009.8,5.36098427]
[1743107740904,0.99525,2009.9,2009.8,6.35628427]
[1743107741601,0.99525,2009.9,2009.8,5.67361023]
[1743107741799,0.99525,2009.9,2009.8,6.35528909]
[1743107742395,0.99525,2009.9,2009.8,5.67361023]
[1743107742702,0.99525,2009.9,2009.8,3.17361023]
[1743107742903,0.99525,2009.9,2009.8,3.1729486]
[1743107744503,2.31885,2009.9,2009.8,3.1729486]
[1743107744803,2.31885,2009.9,2009.8,3.17250937]
[1743107746807,2.31885,2009.9,2009.8,3.17249457]
[1743107750609,2.31885,2009.9,2009.8,2.7931749]
[1743107754407,2.31885,2009.9,2009.8,2.79331683]
[1743107754612,1.3236,2009.9,2009.8,2.79331683]
[1743107754815,3.21525731,2010.4,2010.3,0.99505]
[1743107755107,3.21525731,2010.4,2010.3,5.72206683]
[1743107755311,3.21525731,2010.4,2010.3,7.70996956]
[1743107755701,0.43565731,2010.5,2010.3,9.21491956]
[1743107755906,2.48717,2010.7,2010.5,0.9949]
[1743107755907,0.99495,2010.6,2010.5,0.9949]
[1743107756110,0.99495,2010.6,2010.5,1.49081683]
[1743107756408,0.99495,2010.6,2010.5,2.79831683]
[1743107758016,0.99495,2010.6,2010.5,2.7976098]
[1743107759019,2.36115,2010.6,2010.5,2.7976098]
[1743107759920,2.36115,2010.6,2010.5,2.79754671]
[1743107761518,2.36115,2010.6,2010.5,2.79776568]
[1743107761721,1.3662,2010.6,2010.5,2.79776568]
[1743107761917,2.3611,2010.6,2010.5,2.79776568]
[1743107763223,2.3611,2010.6,2010.5,2.79770016]
[1743107765618,1.3662,2010.6,2010.5,3.47784648]
[1743107765923,1.71476731,2010.8,2010.7,0.99485]
[1743107766122,1.71476731,2010.8,2010.7,1.49015016]
[1743107766917,1.71476731,2010.8,2010.7,1.48983601]
[1743107767418,3.11976731,2010.8,2010.7,2.84723601]
[1743107767620,3.11976731,2010.8,2010.7,3.53903601]
[1743107767819,2.12495731,2010.8,2010.7,3.53903601]
[1743107768418,0.7187,2010.9,2010.7,3.53903601]
[1743107768419,0.6697,2011.1,2011.0,0.9947]
[1743107768616,1.405,2011.1,2011.0,7.87948601]
[1743107768815,1.405,2011.1,2011.0,8.55831674]
[1743107769117,1.66428,2011.3,2011.2,0.99461]
[1743107769319,3.02418,2011.3,2011.2,1.48959601]
[1743107769710,3.02418,2011.3,2011.2,2.92369601]
[1743107771021,2.0296,2011.3,2011.2,2.92369601]
[1743107771220,3.02416,2011.3,2011.2,2.92369601]
[1743107771426,2.0296,2011.3,2011.2,2.92369601]
[1743107771918,3.02416,2011.3,2011.2,2.92369601]
[1743107772625,3.02416,2011.3,2011.2,2.92175993]
[1743107774526,3.02416,2011.3,2011.2,2.92134584]
[1743107776423,3.02416,2011.3,2011.2,2.9213164]
[1743107778227,3.02416,2011.3,2011.2,2.42871]
[1743107778424,3.02416,2011.3,2011.2,2.92129619]
[1743107781328,0.99485,2010.7,2010.6,7.38265]
[1743107781528,0.99485,2010.7,2010.6,8.05985996]
[1743107781731,0.99485,2010.7,2010.6,29.18265]
[1743107781926,4.974,2010.9,2010.5,2.04395731]
[1743107781927,0.9949,2010.6,2010.5,0.00745731]
[1743107784428,1.6798,2010.6,2010.5,0.00745731]
[1743107789031,0.995,2010.4,2010.3,3.2078]
[1743107789627,2.3479,2010.4,2010.3,3.2078]
[1743107790335,2.3479,2010.4,2010.3,4.20285]
[1743107791738,2.3479,2010.4,2010.3,3.2078]
[1743107799740,2.3479,2010.4,2010.1,0.00745731]
[1743107800042,0.9951,2010.2,2010.1,0.00745731]
[1743107800544,2.3623,2010.2,2010.1,1.39895731]
[1743107802437,4.575,2010.2,2009.6,50.142]
[1743107802642,0.99535,2009.7,2009.6,50.142]
[1743107802946,0.99535,2009.7,2009.6,23.2234]
[1743107803747,2.40105,2009.7,2009.6,23.2234]
[1743107806045,3.08705,2009.7,2009.6,21.8]
[1743107806640,0.9954,2009.6,2009.5,4.5305]
[1743107806842,2.3908,2009.6,2009.5,4.5305]
[1743107807043,2.3908,2009.6,2009.5,1.3227]
[1743107807244,2.3908,2009.6,2009.5,23.1227]
[1743107807750,2.3908,2009.6,2009.5,1.3227]
[1743107811346,2.3908,2009.6,2009.4,22.48105731]
[1743107811347,0.99545,2009.5,2009.4,22.48105731]
[1743107811550,2.35795,2009.5,2009.4,22.48105731]
[1743107813053,2.35795,2009.5,2009.4,0.68105731]
[1743107814954,0.99545,2009.5,2009.4,3.11541731]
[1743107815746,0.99545,2009.5,2009.4,24.91541731]
[1743107817752,0.99545,2009.5,2009.4,3.11541731]
[1743107821761,0.99545,2009.5,2009.4,3.79542981]
[1743107823054,0.99545,2009.5,2009.4,3.79551111]
[1743107823958,0.99545,2009.5,2009.4,3.11541731]
[1743107825658,0.6844,2009.8,2009.5,0.99545]
[1743107825851,5.69579,2010.1,2009.9,0.9952]
[1743107825852,0.99524,2010.0,2009.9,0.9952]
[1743107826252,2.31974,2010.0,2009.9,0.9952]
[1743107826450,2.31974,2010.0,2009.9,2.3273]
[1743107826655,1.3245,2010.0,2009.9,2.3273]
[1743107826965,0.99519,2010.1,2010.0,0.9952]
[1743107827172,2.31964,2010.2,2010.1,0.99515]
[1743107835268,2.31964,2010.2,2010.1,4.20295]
[1743107839370,0.99515,2010.1,2010.0,4.17716]
[1743107839562,2.32425,2010.1,2010.0,4.17716]
[1743107844067,2.32425,2010.1,2010.0,7.38496]
[1743107846074,1.3291,2010.1,2010.0,7.38496]
[1743107846266,2.32425,2010.1,2010.0,7.38496]
[1743107846466,1.3291,2010.1,2010.0,7.38496]
[1743107847076,2.32425,2010.1,2010.0,7.38496]
[1743107850277,2.32425,2010.1,2010.0,8.0652205]
[1743107850471,2.32425,2010.1,2010.0,7.38496]
[1743107850873,1.3291,2010.1,2010.0,8.06522745]
[1743107851570,1.3291,2010.1,2010.0,7.38496]
[1743107851773,1.3291,2010.1,2010.0,9.48147687]
[1743107851978,1.69820731,2010.5,2010.4,0.995]
[1743107852175,1.68300731,2010.5,2010.4,0.995]
[1743107853278,1.68300731,2010.5,2010.4,2.4111]
[1743107853580,0.68805731,2010.5,2010.4,2.4111]
[1743107853783,1.68300731,2010.5,2010.4,2.4111]
[1743107853985,3.05110731,2010.5,2010.4,3.0915061]
[1743107854372,2.05615731,2010.5,2010.4,3.0915061]
[1743107854879,3.05110731,2010.5,2010.4,3.0915061]
[1743107856175,2.05615731,2010.5,2010.4,3.0915061]
[1743107858985,2.05615731,2010.5,2010.4,2.4111]
[1743107859173,2.05615731,2010.5,2010.4,3.09173011]
[1743107859686,3.05110731,2010.5,2010.4,3.09173011]
[1743107859986,2.05615731,2010.5,2010.4,3.09173011]
[1743107860287,3.05110731,2010.5,2010.4,3.09173011]
[1743107860587,2.05615731,2010.5,2010.4,3.09173011]
[1743107860786,3.05110731,2010.5,2010.4,3.09173011]
[1743107860990,2.05615731,2010.5,2010.4,3.09158405]
[1743107861286,3.05110731,2010.5,2010.4,3.09152941]
[1743107862377,2.05615731,2010.5,2010.3,4.20281]
[1743107862587,2.4393,2010.4,2010.3,3.2078]
[1743107862777,2.4393,2010.4,2010.3,3.88831103]
[1743107862976,2.4393,2010.4,2010.3,4.20285]
[1743107863981,2.4393,2010.4,2010.3,3.2078]
[1743107865887,1.4443,2010.4,2010.1,1.4169]
[1743107866088,0.99515,2010.1,2010.0,4.636]
[1743107866391,0.99515,2010.1,2010.0,4.88368677]
[1743107866596,0.99515,2010.1,2010.0,4.88376244]
[1743107867092,2.32305,2010.1,2010.0,4.88376244]
[1743107867485,2.32305,2010.1,2010.0,6.21766244]
[1743107869886,2.32305,2010.1,2010.0,5.5369]
[1743107871581,2.48823,2009.9,2009.7,3.2078]
[1743107871787,1.6464,2009.8,2009.7,3.2078]
[1743107871987,3.6727,2009.8,2009.7,3.2078]
[1743107872192,0.9954,2009.6,2009.5,50.163]
[1743107872388,7.654,2009.8,2009.4,3.21525731]
[1743107872389,0.99545,2009.5,2009.4,3.21525731]
[1743107872592,1.64655,2009.5,2009.4,3.21525731]
[1743107873996,1.64655,2009.5,2009.4,0.00745731]
[1743107875202,1.64655,2009.5,2009.4,1.00295731]
[1743107875390,1.64655,2009.5,2009.4,5.62325731]
[1743107877295,1.64655,2009.5,2009.4,4.62775731]
[1743107877490,1.64655,2009.5,2009.4,5.62325731]
[1743107878298,1.64655,2009.5,2009.4,0.00745731]
[1743107880697,3.08715,2009.5,2009.4,0.00745731]
[1743107901918,0.9955,2009.4,2009.3,1.4412]
[1743107902211,3.1179,2009.4,2009.3,1.4412]
[1743107904309,3.1179,2009.4,2009.3,2.43675]
[1743107905015,3.1179,2009.4,2009.3,1.4412]
[1743107911222,3.1179,2009.4,2009.3,2.08906062]
[1743107912224,2.4338,2009.4,2009.3,3.08461062]
[1743107912420,0.9955,2009.4,2009.3,3.08461062]
[1743107912620,2.3232,2009.4,2009.3,3.08461062]
[1743107912825,2.3232,2009.4,2009.3,4.23155434]
[1743107913327,2.3232,2009.4,2009.3,4.91359655]
[1743107913627,2.3232,2009.4,2009.3,4.23152566]
[1743107914020,0.9955,2009.4,2009.3,4.91349398]
[1743107915417,0.9955,2009.4,2009.3,4.91283532]
[1743107916230,1.3277,2009.5,2009.4,0.9955]
[1743107916415,0.9953,2009.9,2009.8,0.9953]
[1743107916622,0.9953,2009.9,2009.8,1.48741258]
[1743107916825,2.3558,2009.9,2009.8,2.16851552]
[1743107917024,2.3558,2009.9,2009.8,4.14787614]
[1743107917422,2.3558,2009.9,2009.8,3.4667732]
[1743107917622,2.3558,2009.9,2009.8,2.4714732]
[1743107918632,2.3558,2009.9,2009.8,3.4667732]
[1743107918828,2.3558,2009.9,2009.8,2.4714732]
[1743107919031,2.3558,2009.9,2009.8,1.97936062]
[1743107919229,2.3558,2009.9,2009.8,2.470421]
[1743107919734,2.3558,2009.9,2009.8,1.82256038]
[1743107920231,2.3558,2009.9,2009.8,2.81786038]
[1743107920431,2.3558,2009.9,2009.8,1.82256038]
[1743107921029,2.3558,2009.9,2009.8,1.8222474]
[1743107921633,2.3558,2009.9,2009.8,1.82212147]
[1743107922930,2.3558,2009.9,2009.8,2.81742147]
[1743107923130,2.3558,2009.9,2009.8,1.82212147]
[1743107923330,2.3558,2009.9,2009.8,1.3315]
[1743107929042,0.99545,2009.5,2009.4,7.38327]
[1743107929234,0.99545,2009.5,2009.4,9.24183295]
[1743107929634,0.99545,2009.5,2009.4,9.88698823]
[1743107930435,0.99545,2009.5,2009.4,11.25764183]
[1743107932443,0.99545,2009.5,2009.4,11.25769485]
[1743107933636,0.99543,2009.6,2009.5,0.9954]
[1743107933948,0.99535,2009.8,2009.7,0.9953]
[1743107934245,2.35869,2009.9,2009.8,0.9953]
[1743107934442,1.3634,2009.9,2009.8,3.51465841]
[1743107934638,0.99525,2009.9,2009.8,3.51465841]
[1743107934943,2.35863,2010.0,2009.9,0.99525]
[1743107935146,2.35863,2010.0,2009.9,3.47590841]
[1743107935344,2.35863,2010.0,2009.9,4.12106369]
[1743107935741,2.35857,2010.1,2010.0,0.9952]
[1743107935944,2.35857,2010.1,2010.0,6.65221369]
[1743107936844,1.3634,2010.1,2010.0,6.65221369]
[1743107937146,0.00745731,2010.5,2010.4,0.995]
[1743107937343,0.00745731,2010.5,2010.4,4.69315841]
[1743107937540,1.00240731,2010.5,2010.4,5.33831369]
[1743107938148,1.00240731,2010.5,2010.4,6.67451369]
[1743107938337,1.00240731,2010.5,2010.4,6.02935841]
[1743107938539,1.00240731,2010.5,2010.4,27.82935841]
[1743107940043,1.00240731,2010.5,2010.4,6.02935841]
[1743107940244,0.00745731,2010.5,2010.4,6.02935841]
[1743107940744,1.37665731,2010.5,2010.4,6.02935841]
[1743107940946,2.37160731,2010.5,2010.4,6.67317698]
[1743107941335,2.37160731,2010.5,2010.4,6.67235668]
[1743107942142,1.37665731,2010.5,2010.4,6.67235668]
[1743107942740,2.37160731,2010.5,2010.4,6.67235668]
[1743107942940,1.37665731,2010.5,2010.4,6.67235668]
[1743107943147,1.37665731,2010.5,2010.4,6.02853811]
[1743107944151,0.00745731,2010.5,2010.4,6.02853811]
[1743107945351,1.00240731,2010.5,2010.4,6.67196167]
[1743107945548,2.31860731,2010.5,2010.4,6.67196167]
[1743107946249,2.31860731,2010.5,2010.4,8.85596167]
[1743107946449,2.31860731,2010.5,2010.4,8.21253811]
[1743107946850,2.31860731,2010.5,2010.4,8.21235737]
[1743107948754,2.31860731,2010.5,2010.4,8.21224048]
[1743107948950,2.31860731,2010.5,2010.4,9.20724048]
[1743107949454,2.31860731,2010.5,2010.4,9.20719727]
[1743107949750,2.31860731,2010.5,2010.4,8.718]
[1743107951353,2.31860731,2010.5,2010.4,7.723]
[1743107952155,2.31860731,2010.5,2010.4,8.718]
[1743107952346,2.31860731,2010.5,2010.4,7.723]
[1743107953053,2.31860731,2010.5,2010.4,5.539]
[1743107953755,2.31860731,2010.5,2010.4,4.544]
[1743107953957,2.31860731,2010.5,2010.4,3.2078]
[1743107957956,2.31860731,2010.5,2010.4,4.2028]
[1743107958156,2.31860731,2010.5,2010.4,4.5854]
[1743107961651,2.31860731,2010.5,2010.4,5.07575512]
[1743107963659,2.31860731,2010.5,2010.4,5.72188562]
[1743107964165,2.31860731,2010.5,2010.4,5.72274274]
[1743107965860,2.31860731,2010.5,2010.4,5.7233855]
[1743107967875,2.31860731,2010.5,2010.4,5.72357077]
[1743107969177,2.31860731,2010.5,2010.4,4.34597077]
[1743107971173,2.31860731,2010.5,2010.4,5.65767077]
[1743107971678,2.31860731,2010.5,2010.4,5.6575419]
[1743107972282,3.01760731,2010.5,2010.4,5.6575419]
[1743107973575,3.01760731,2010.5,2010.4,5.65771136]
[1743107975577,3.01760731,2010.5,2010.4,5.6577296]
[1743107975778,3.01760731,2010.5,2010.4,2.4499296]
[1743107979885,2.31860731,2010.5,2010.4,2.4499296]
[1743107980282,1.00240731,2010.5,2010.4,2.4499296]
[1743107980584,2.40060731,2010.5,2010.4,2.4499296]
[1743107980781,2.40060731,2010.5,2010.4,3.4449296]
[1743107981184,2.40060731,2010.5,2010.4,3.44556722]
[1743107981380,2.40060731,2010.5,2010.4,2.45056722]
[1743107981684,2.40060731,2010.5,2010.4,3.44556722]
[1743107981890,1.40565731,2010.5,2010.4,3.44556722]
[1743107982078,2.48679,2011.0,2010.8,0.99479]
[1743107982279,1.7001,2011.0,2010.9,1.8593284]
[1743107982581,1.7001,2011.0,2010.9,2.5522284]
[1743107983185,1.7001,2011.0,2010.9,2.55199892]
[1743107983386,3.0526,2011.0,2010.9,2.55199892]
[1743107983879,3.0526,2011.0,2010.9,2.5518101]
[1743107984683,3.0526,2011.0,2010.9,2.55160731]
[1743107984882,3.0526,2011.0,2010.9,2.0597]
[1743107990486,2.3472,2011.0,2010.9,2.0597]
[1743107990791,3.0169,2011.0,2010.9,2.55093109]
[1743107991985,3.0169,2011.0,2010.9,2.0597]
[1743108000686,3.0169,2011.0,2010.9,1.3668]
[1743108000988,0.9948,2010.8,2010.7,0.6752]
[1743108001185,0.9948,2010.8,2010.7,1.16673596]
[1743108001685,1.6653,2010.8,2010.7,0.49162342]
[1743108002284,1.6653,2010.8,2010.7,2.4511568]
[1743108004098,3.0263,2010.8,2010.7,2.4511568]
[1743108004896,2.3558,2010.8,2010.7,2.4511568]
[1743108005189,2.3558,2010.8,2010.7,3.80593864]